[Event "Late-Titled-Tuesday-Blitz-September-19-2023"]
[Site "Chess.com"]
[Date "2023.09.19"]
[Round "7"]
[White "Guzman70"]
[Black "Cambek64"]
[Result "0-1"]
[WhiteElo "2296"]
[BlackElo "2470"]
[TimeControl "180+1"]
[EndTime "15:14:23 PDT"]
[Termination "Cambek64 won by resignation"]

1. Nf3 {[%clk 0:03:00.9]} 1... b5 {[%clk 0:02:58]} 2. e4 {[%clk 0:03:00.4]} 2...
Bb7 {[%clk 0:02:57.3]} 3. Bxb5 {[%clk 0:02:57]} 3... Bxe4 {[%clk 0:02:57.7]} 4.
O-O {[%clk 0:02:57]} 4... c6 {[%clk 0:02:56.3]} 5. Ba4 {[%clk 0:02:54.6]} 5...
Qa5 {[%clk 0:02:56.1]} 6. Nc3 {[%clk 0:02:53]} 6... Bg6 {[%clk 0:02:25.7]} 7.
Re1 {[%clk 0:02:46.8]} 7... Nf6 {[%clk 0:02:25.5]} 8. Re5 {[%clk 0:02:46.1]}
8... Qc7 {[%clk 0:02:21.4]} 9. d4 {[%clk 0:02:45.4]} 9... e6 {[%clk 0:02:19.3]}
10. Re1 {[%clk 0:02:38.3]} 10... d5 {[%clk 0:02:16.9]} 11. Ne5 {[%clk
0:02:36.1]} 11... Bd6 {[%clk 0:02:12.5]} 12. Bg5 {[%clk 0:02:35.4]} 12... Bxe5
{[%clk 0:02:05.8]} 13. Rxe5 {[%clk 0:02:32.6]} 13... Nbd7 {[%clk 0:02:04.7]} 14.
Bxf6 {[%clk 0:02:28.3]} 14... Nxf6 {[%clk 0:02:00]} 15. b4 {[%clk 0:02:04.3]}
15... O-O {[%clk 0:01:57.8]} 16. Bb3 {[%clk 0:02:01.3]} 16... a5 {[%clk
0:01:40]} 17. a3 {[%clk 0:01:51.8]} 17... axb4 {[%clk 0:01:31.6]} 18. axb4
{[%clk 0:01:52.7]} 18... Rxa1 {[%clk 0:01:31]} 19. Qxa1 {[%clk 0:01:51.9]} 19...
Qb6 {[%clk 0:01:31.2]} 20. Na2 {[%clk 0:01:43.3]} 20... Ra8 {[%clk 0:01:27.1]}
21. Qb2 {[%clk 0:01:31.5]} 21... h6 {[%clk 0:01:27.7]} 22. h3 {[%clk 0:01:29.4]}
22... Be4 {[%clk 0:01:15.3]} 23. f3 {[%clk 0:01:25.5]} 23... Nd7 {[%clk
0:01:14.5]} 24. Rh5 {[%clk 0:01:22.1]} 24... Bg6 {[%clk 0:01:10.9]} 25. Rh4
{[%clk 0:01:21.2]} 25... Qa6 {[%clk 0:01:03.5]} 26. Qc3 {[%clk 0:01:16.4]} 26...
Qe2 {[%clk 0:01:00.5]} 27. Rg4 {[%clk 0:01:12.5]} 27... Ra6 {[%clk 0:00:53.3]}
28. Kh2 {[%clk 0:01:04.4]} 28... Nf6 {[%clk 0:00:52.7]} 29. Nc1 {[%clk
0:00:59.8]} 29... Nxg4+ {[%clk 0:00:47.9]} 30. hxg4 {[%clk 0:00:59.4]} 30... Qd1
{[%clk 0:00:45.4]} 31. Nd3 {[%clk 0:00:58]} 31... Bxd3 {[%clk 0:00:44.2]} 32.
Qxd3 {[%clk 0:00:58.9]} 32... Qxd3 {[%clk 0:00:43.5]} 33. cxd3 {[%clk
0:00:58.7]} 33... Ra3 {[%clk 0:00:42.8]} 34. Bxd5 {[%clk 0:00:57.8]} 34... cxd5
{[%clk 0:00:41.7]} 35. b5 {[%clk 0:00:51.9]} 35... Rb3 {[%clk 0:00:39.7]} 36. g5
{[%clk 0:00:52.8]} 36... hxg5 {[%clk 0:00:38.7]} 37. f4 {[%clk 0:00:53.7]} 37...
gxf4 {[%clk 0:00:38]} 38. g3 {[%clk 0:00:54.6]} 38... fxg3+ {[%clk 0:00:37.8]}
39. Kh3 {[%clk 0:00:54.5]} 39... Rxd3 {[%clk 0:00:36]} 40. b6 {[%clk 0:00:55.4]}
40... Rxd4 {[%clk 0:00:35.5]} 41. b7 {[%clk 0:00:56.3]} 41... Rb4 {[%clk
0:00:35.6]} 42. b8=Q+ {[%clk 0:00:57.2]} 42... Rxb8 {[%clk 0:00:34.7]} 43. Kh4
{[%clk 0:00:57.5]} 43... g2 {[%clk 0:00:33.7]} 44. Kh5 {[%clk 0:00:58.4]} 44...
g1=Q {[%clk 0:00:31.9]} 45. Kh4 {[%clk 0:00:58.8]} 45... Rb2 {[%clk 0:00:31.4]}
0-1

[Event "Late-Titled-Tuesday-Blitz-September-19-2023"]
[Site "Chess.com"]
[Date "2023.09.19"]
[Round "7"]
[White "davigator"]
[Black "canary2016"]
[Result "1-0"]
[WhiteElo "2335"]
[BlackElo "2148"]
[TimeControl "180+1"]
[EndTime "15:14:23 PDT"]
[Termination "davigator won by checkmate"]

1. e4 {[%clk 0:02:58.1]} 1... c5 {[%clk 0:02:43]} 2. Nf3 {[%clk 0:02:57.1]} 2...
d6 {[%clk 0:02:41.8]} 3. d4 {[%clk 0:02:56.7]} 3... cxd4 {[%clk 0:02:42.3]} 4.
Nxd4 {[%clk 0:02:57]} 4... Nf6 {[%clk 0:02:42.7]} 5. Nc3 {[%clk 0:02:57.4]} 5...
Nc6 {[%clk 0:02:43.3]} 6. Bg5 {[%clk 0:02:56.3]} 6... e6 {[%clk 0:02:41.9]} 7.
f3 {[%clk 0:02:55]} 7... Be7 {[%clk 0:02:41.9]} 8. h4 {[%clk 0:02:54.2]} 8... h6
{[%clk 0:02:41]} 9. Be3 {[%clk 0:02:53.5]} 9... O-O {[%clk 0:02:39.4]} 10. Qd2
{[%clk 0:02:52.9]} 10... a6 {[%clk 0:02:17.7]} 11. O-O-O {[%clk 0:02:50]} 11...
Qc7 {[%clk 0:02:16.2]} 12. g4 {[%clk 0:02:48.5]} 12... e5 {[%clk 0:02:12.4]} 13.
Nf5 {[%clk 0:02:46.7]} 13... b5 {[%clk 0:02:07.1]} 14. g5 {[%clk 0:02:45.5]}
14... Nh5 {[%clk 0:01:47.7]} 15. gxh6 {[%clk 0:02:39.2]} 15... g6 {[%clk
0:01:47.8]} 16. Nxe7+ {[%clk 0:02:39.2]} 16... Qxe7 {[%clk 0:01:47.6]} 17. Nd5
{[%clk 0:02:37.8]} 17... Qb7 {[%clk 0:01:38.6]} 18. Bg5 {[%clk 0:02:28.9]} 18...
Be6 {[%clk 0:01:33]} 19. Nf6+ {[%clk 0:02:19.1]} 19... Nxf6 {[%clk 0:01:22.3]}
20. Bxf6 {[%clk 0:02:20]} 20... Nd4 {[%clk 0:01:07.4]} 21. c3 {[%clk 0:02:11.9]}
21... Bxa2 {[%clk 0:01:00.9]} 22. Qg2 {[%clk 0:02:03.1]} 22... Nb3+ {[%clk
0:00:39.2]} 23. Kc2 {[%clk 0:02:02.6]} 23... Qc6 {[%clk 0:00:29.5]} 24. h5
{[%clk 0:01:59.5]} 24... Kh7 {[%clk 0:00:11.8]} 25. Be7 {[%clk 0:01:51.2]} 25...
Nd4+ {[%clk 0:00:07.3]} 26. Kd2 {[%clk 0:01:38.6]} 26... Nb3+ {[%clk 0:00:07.3]}
27. Ke1 {[%clk 0:01:37.5]} 27... Qd7 {[%clk 0:00:03.6]} 28. hxg6+ {[%clk
0:01:28.3]} 28... fxg6 {[%clk 0:00:03.5]} 29. Bxd6 {[%clk 0:01:25]} 29... Rfd8
{[%clk 0:00:02.7]} 30. Be2 {[%clk 0:01:23.6]} 30... Qe6 {[%clk 0:00:02.2]} 31.
Ba3 {[%clk 0:01:17.4]} 31... Rxd1+ {[%clk 0:00:02]} 32. Bxd1 {[%clk 0:01:18]}
32... Rd8 {[%clk 0:00:02.3]} 33. Qg5 {[%clk 0:01:06.1]} 33... Rd7 {[%clk
0:00:01.7]} 34. Rh2 {[%clk 0:01:03.5]} 34... Nc5 {[%clk 0:00:02.1]} 35. Bxc5
{[%clk 0:01:01.8]} 35... Rxd1+ {[%clk 0:00:02.4]} 36. Kxd1 {[%clk 0:00:59.9]}
36... Qb3+ {[%clk 0:00:02.6]} 37. Kc1 {[%clk 0:00:59.9]} 37... Qc4 {[%clk
0:00:01.7]} 38. Qe7+ {[%clk 0:00:56.9]} 38... Kh8 {[%clk 0:00:01.8]} 39. Qg7#
{[%clk 0:00:57]} 1-0

[Event "Late-Titled-Tuesday-Blitz-September-19-2023"]
[Site "Chess.com"]
[Date "2023.09.19"]
[Round "7"]
[White "Garmendiarov"]
[Black "Dewarfd"]
[Result "1-0"]
[WhiteElo "2329"]
[BlackElo "2191"]
[TimeControl "180+1"]
[EndTime "15:14:23 PDT"]
[Termination "Garmendiarov won by resignation"]

1. e4 {[%clk 0:02:57.7]} 1... e5 {[%clk 0:02:58.7]} 2. Nf3 {[%clk 0:02:56.5]}
2... Nc6 {[%clk 0:02:58.8]} 3. Bb5 {[%clk 0:02:56.8]} 3... Nf6 {[%clk
0:02:58.3]} 4. d3 {[%clk 0:02:55.9]} 4... Ne7 {[%clk 0:02:57.9]} 5. O-O {[%clk
0:02:53.5]} 5... c6 {[%clk 0:02:57.9]} 6. Bc4 {[%clk 0:02:52.8]} 6... Ng6 {[%clk
0:02:55.8]} 7. Re1 {[%clk 0:02:44.9]} 7... Be7 {[%clk 0:02:54.6]} 8. a4 {[%clk
0:02:43.4]} 8... O-O {[%clk 0:02:49.6]} 9. Nc3 {[%clk 0:02:43.7]} 9... Qc7
{[%clk 0:02:43.6]} 10. Bg5 {[%clk 0:02:34.2]} 10... h6 {[%clk 0:02:43]} 11. Be3
{[%clk 0:02:22]} 11... Rd8 {[%clk 0:02:38]} 12. Bb3 {[%clk 0:01:41.4]} 12... d5
{[%clk 0:02:35.6]} 13. exd5 {[%clk 0:01:40.4]} 13... cxd5 {[%clk 0:02:36.4]} 14.
d4 {[%clk 0:01:39.4]} 14... e4 {[%clk 0:02:32.5]} 15. Nb5 {[%clk 0:01:26.7]}
15... Qb8 {[%clk 0:02:15.6]} 16. Nd2 {[%clk 0:01:19.7]} 16... Bg4 {[%clk
0:02:11.5]} 17. Qb1 {[%clk 0:01:17.7]} 17... a6 {[%clk 0:01:57.5]} 18. Nc3
{[%clk 0:01:17.4]} 18... Bb4 {[%clk 0:01:57.2]} 19. Qa2 {[%clk 0:01:15.9]} 19...
Bxc3 {[%clk 0:01:55.3]} 20. bxc3 {[%clk 0:01:16.8]} 20... Be6 {[%clk 0:01:54.6]}
21. c4 {[%clk 0:01:14.8]} 21... dxc4 {[%clk 0:01:42.2]} 22. Bxc4 {[%clk
0:01:15.1]} 22... Bxc4 {[%clk 0:01:39.7]} 23. Nxc4 {[%clk 0:01:16]} 23... Ng4
{[%clk 0:01:31.1]} 24. g3 {[%clk 0:01:11.7]} 24... Nxe3 {[%clk 0:01:29.9]} 25.
Rxe3 {[%clk 0:01:09]} 25... Rxd4 {[%clk 0:01:21.5]} 26. Nb6 {[%clk 0:01:03.7]}
26... Ra7 {[%clk 0:01:21.1]} 27. Rae1 {[%clk 0:00:54.6]} 27... Qd6 {[%clk
0:01:17.9]} 28. Nc8 {[%clk 0:00:51]} 28... Qb8 {[%clk 0:01:06.4]} 29. Nxa7
{[%clk 0:00:49.7]} 29... Qxa7 {[%clk 0:01:07.2]} 30. Rxe4 {[%clk 0:00:47.7]}
30... Rd2 {[%clk 0:01:07.1]} 31. Re8+ {[%clk 0:00:45.5]} 31... Kh7 {[%clk
0:01:06.6]} 32. Qxf7 {[%clk 0:00:44.2]} 32... h5 {[%clk 0:00:45.3]} 33. R1e6
{[%clk 0:00:42.3]} 1-0

[Event "Late-Titled-Tuesday-Blitz-September-19-2023"]
[Site "Chess.com"]
[Date "2023.09.19"]
[Round "7"]
[White "jinxy2009"]
[Black "Cipy77"]
[Result "1/2-1/2"]
[WhiteElo "2319"]
[BlackElo "2490"]
[TimeControl "180+1"]
[EndTime "15:14:24 PDT"]
[Termination "Game drawn by repetition"]

1. e4 {[%clk 0:03:00.9]} 1... c5 {[%clk 0:02:59.3]} 2. Nf3 {[%clk 0:03:00.6]}
2... Nf6 {[%clk 0:02:58.6]} 3. e5 {[%clk 0:02:57.1]} 3... Nd5 {[%clk 0:02:58.6]}
4. Nc3 {[%clk 0:02:57.7]} 4... Nxc3 {[%clk 0:02:58.3]} 5. dxc3 {[%clk
0:02:58.6]} 5... e6 {[%clk 0:02:57]} 6. Bf4 {[%clk 0:02:47.4]} 6... Nc6 {[%clk
0:02:57.2]} 7. Qd2 {[%clk 0:02:44.4]} 7... b6 {[%clk 0:02:56.8]} 8. O-O-O {[%clk
0:02:44]} 8... Qc7 {[%clk 0:02:57.1]} 9. h4 {[%clk 0:02:39.9]} 9... Bb7 {[%clk
0:02:57.1]} 10. h5 {[%clk 0:02:38.7]} 10... h6 {[%clk 0:02:57.2]} 11. Kb1 {[%clk
0:02:37]} 11... O-O-O {[%clk 0:02:57.1]} 12. a4 {[%clk 0:02:18.3]} 12... Ne7
{[%clk 0:02:57]} 13. c4 {[%clk 0:01:40.8]} 13... Nc6 {[%clk 0:02:55.2]} 14. Be2
{[%clk 0:01:32.4]} 14... Be7 {[%clk 0:02:55.2]} 15. Bg3 {[%clk 0:01:21.5]} 15...
Kb8 {[%clk 0:02:55.2]} 16. Qf4 {[%clk 0:01:09.3]} 16... Rhf8 {[%clk 0:02:52.3]}
17. Rd2 {[%clk 0:00:59.6]} 17... Ka8 {[%clk 0:02:50]} 18. Rhd1 {[%clk
0:00:58.8]} 18... Nb8 {[%clk 0:02:46.7]} 19. Bh4 {[%clk 0:00:35.4]} 19... f6
{[%clk 0:02:38.1]} 20. Qg3 {[%clk 0:00:27.7]} 20... Rg8 {[%clk 0:02:28]} 21.
exf6 {[%clk 0:00:25.6]} 21... Qxg3 {[%clk 0:02:28]} 22. Bxg3 {[%clk 0:00:25.2]}
22... gxf6 {[%clk 0:02:26.9]} 23. Bxb8 {[%clk 0:00:18.9]} 23... Rxb8 {[%clk
0:02:10.2]} 24. Rxd7 {[%clk 0:00:19.8]} 24... Bf8 {[%clk 0:02:10.8]} 25. g3
{[%clk 0:00:18.4]} 25... Bg7 {[%clk 0:02:00.4]} 26. Nh4 {[%clk 0:00:17.8]} 26...
f5 {[%clk 0:02:00.6]} 27. Ng6 {[%clk 0:00:17.5]} 27... Bf6 {[%clk 0:01:59]} 28.
Rf7 {[%clk 0:00:16.6]} 28... Bg5 {[%clk 0:01:57.3]} 29. Rdd7 {[%clk 0:00:16.1]}
29... Rgd8 {[%clk 0:01:55.8]} 30. Rxb7 {[%clk 0:00:15.5]} 30... Rxb7 {[%clk
0:01:54.8]} 31. Bf3 {[%clk 0:00:16]} 31... Rb8 {[%clk 0:01:54.6]} 32. Ne5 {[%clk
0:00:13.6]} 32... a6 {[%clk 0:01:54.8]} 33. Rxb7 {[%clk 0:00:08.5]} 33... Rxb7
{[%clk 0:01:54.8]} 34. Bxb7+ {[%clk 0:00:09.4]} 34... Kxb7 {[%clk 0:01:55.5]}
35. f4 {[%clk 0:00:10.3]} 35... Bf6 {[%clk 0:01:54.9]} 36. Nf7 {[%clk
0:00:10.4]} 36... Bg7 {[%clk 0:01:55.1]} 37. c3 {[%clk 0:00:10.9]} 37... Kc6
{[%clk 0:01:55.3]} 38. Kc2 {[%clk 0:00:10.3]} 38... Kd7 {[%clk 0:01:55.8]} 39.
Kd3 {[%clk 0:00:10.1]} 39... Ke7 {[%clk 0:01:56.2]} 40. Ne5 {[%clk 0:00:10.2]}
40... Bxe5 {[%clk 0:01:47.9]} 41. fxe5 {[%clk 0:00:11.1]} 41... a5 {[%clk
0:01:46.9]} 42. Ke3 {[%clk 0:00:07.4]} 42... Kf7 {[%clk 0:01:47.3]} 43. Kf4
{[%clk 0:00:07.3]} 43... Ke7 {[%clk 0:01:47.5]} 44. g4 {[%clk 0:00:07.6]} 44...
fxg4 {[%clk 0:01:48.1]} 45. Kxg4 {[%clk 0:00:08.5]} 45... Kf7 {[%clk 0:01:48.7]}
46. Kf4 {[%clk 0:00:08.9]} 46... Ke7 {[%clk 0:01:49.4]} 47. Ke3 {[%clk
0:00:09.2]} 47... Kf7 {[%clk 0:01:49.7]} 48. Kd2 {[%clk 0:00:09.8]} 48... Ke7
{[%clk 0:01:50.3]} 49. Kc2 {[%clk 0:00:10.7]} 49... Kd7 {[%clk 0:01:50.8]} 50.
b4 {[%clk 0:00:10.8]} 50... Kc6 {[%clk 0:01:47.7]} 51. Kb3 {[%clk 0:00:10.2]}
51... Kc7 {[%clk 0:01:47.7]} 52. Ka3 {[%clk 0:00:09.9]} 52... Kc6 {[%clk
0:01:47.8]} 53. Kb2 {[%clk 0:00:10.6]} 53... Kc7 {[%clk 0:01:48.4]} 54. bxa5
{[%clk 0:00:10.1]} 54... bxa5 {[%clk 0:01:48.5]} 55. Kc2 {[%clk 0:00:10.5]}
55... Kc6 {[%clk 0:01:48.9]} 56. Kd3 {[%clk 0:00:11.4]} 56... Kd7 {[%clk
0:01:49.5]} 57. Ke4 {[%clk 0:00:12.3]} 57... Kc6 {[%clk 0:01:50]} 58. Kf4 {[%clk
0:00:13.2]} 58... Kd7 {[%clk 0:01:50.7]} 59. Kg4 {[%clk 0:00:14.1]} 59... Kc6
{[%clk 0:01:51.3]} 60. Kh4 {[%clk 0:00:15]} 60... Kd7 {[%clk 0:01:51.9]} 61. Kh3
{[%clk 0:00:15.9]} 61... Ke7 {[%clk 0:01:52.8]} 62. Kg3 {[%clk 0:00:16.8]} 62...
Kf7 {[%clk 0:01:53.7]} 63. Kg2 {[%clk 0:00:17.7]} 63... Ke7 {[%clk 0:01:54.5]}
64. Kf2 {[%clk 0:00:18.6]} 64... Kf7 {[%clk 0:01:55.3]} 65. Ke2 {[%clk
0:00:19.5]} 65... Ke7 {[%clk 0:01:56.2]} 66. Kd2 {[%clk 0:00:20.4]} 66... Kd8
{[%clk 0:01:57.1]} 67. Kc2 {[%clk 0:00:21.3]} 67... Kc7 {[%clk 0:01:58]} 68. Kb2
{[%clk 0:00:22.2]} 68... Kc6 {[%clk 0:01:58.9]} 69. Kb3 {[%clk 0:00:23.1]} 69...
Kd7 {[%clk 0:01:59.8]} 70. Ka3 {[%clk 0:00:24]} 70... Ke7 {[%clk 0:02:00.7]} 71.
Ka2 {[%clk 0:00:24.9]} 71... Kf7 {[%clk 0:02:01.6]} 72. Ka1 {[%clk 0:00:25.8]}
72... Kf8 {[%clk 0:02:02.2]} 73. Kb1 {[%clk 0:00:26.7]} 73... Kg8 {[%clk
0:02:03.1]} 74. Kc1 {[%clk 0:00:27.6]} 74... Kh7 {[%clk 0:02:04]} 75. Kd1 {[%clk
0:00:28.5]} 75... Kg7 {[%clk 0:02:04.9]} 76. Ke1 {[%clk 0:00:29.4]} 76... Kf7
{[%clk 0:02:05.8]} 77. Kf1 {[%clk 0:00:30.3]} 77... Ke7 {[%clk 0:02:06.7]} 78.
Kg1 {[%clk 0:00:31.2]} 78... Kd8 {[%clk 0:02:07.6]} 79. Kh1 {[%clk 0:00:32.1]}
79... Kc7 {[%clk 0:02:08.5]} 80. Kh2 {[%clk 0:00:33]} 80... Kc6 {[%clk
0:02:09.4]} 81. Kh3 {[%clk 0:00:33.9]} 81... Kb6 {[%clk 0:02:10.3]} 82. Kg3
{[%clk 0:00:34.8]} 82... Ka6 {[%clk 0:02:11.2]} 83. Kf4 {[%clk 0:00:35.7]} 83...
Kb7 {[%clk 0:02:12.1]} 84. Ke4 {[%clk 0:00:36.6]} 84... Kc7 {[%clk 0:02:13]} 85.
Kd3 {[%clk 0:00:37.5]} 85... Kd8 {[%clk 0:02:13.9]} 86. Ke3 {[%clk 0:00:38.4]}
86... Ke8 {[%clk 0:02:14.8]} 87. Ke2 {[%clk 0:00:39.3]} 87... Ke7 {[%clk
0:02:15.4]} 88. Kd2 {[%clk 0:00:40.2]} 88... Kf7 {[%clk 0:02:16.3]} 89. Kc2
{[%clk 0:00:41.1]} 89... Ke8 {[%clk 0:02:17.2]} 90. Kb2 {[%clk 0:00:42]} 90...
Ke7 {[%clk 0:02:18.1]} 91. Kb1 {[%clk 0:00:42.9]} 91... Kd7 {[%clk 0:02:19]} 92.
Ka1 {[%clk 0:00:43.8]} 92... Kd8 {[%clk 0:02:19.9]} 93. Ka2 {[%clk 0:00:44.7]}
93... Kc7 {[%clk 0:02:20.8]} 94. Ka3 {[%clk 0:00:45.6]} 94... Kc6 {[%clk
0:02:21.7]} 95. Kb3 {[%clk 0:00:46.5]} 95... Kb6 {[%clk 0:02:22.6]} 96. Kc2
{[%clk 0:00:47.4]} 96... Ka6 {[%clk 0:02:23.5]} 97. Kb3 {[%clk 0:00:48.3]} 97...
Kb7 {[%clk 0:02:24.4]} 98. Kc2 {[%clk 0:00:49.2]} 98... Kc6 {[%clk 0:02:25.3]}
99. Kb3 {[%clk 0:00:50.1]} 1/2-1/2

[Event "Late-Titled-Tuesday-Blitz-September-19-2023"]
[Site "Chess.com"]
[Date "2023.09.19"]
[Round "7"]
[White "TheMagician"]
[Black "Sacbutt"]
[Result "1-0"]
[WhiteElo "2251"]
[BlackElo "2350"]
[TimeControl "180+1"]
[EndTime "15:14:29 PDT"]
[Termination "TheMagician won on time"]

1. d4 {[%clk 0:02:55.9]} 1... Nf6 {[%clk 0:02:59.4]} 2. c4 {[%clk 0:02:53.1]}
2... e6 {[%clk 0:02:59.6]} 3. Nf3 {[%clk 0:02:51.1]} 3... b6 {[%clk 0:02:59.7]}
4. g3 {[%clk 0:02:50.7]} 4... Bb7 {[%clk 0:03:00.1]} 5. Bg2 {[%clk 0:02:50.8]}
5... Be7 {[%clk 0:03:00.7]} 6. O-O {[%clk 0:02:50.7]} 6... O-O {[%clk
0:03:00.6]} 7. Bg5 {[%clk 0:02:50.7]} 7... Ne4 {[%clk 0:02:59.9]} 8. Bxe7 {[%clk
0:02:50.4]} 8... Qxe7 {[%clk 0:03:00.8]} 9. Qc2 {[%clk 0:02:50]} 9... f5 {[%clk
0:02:59.9]} 10. Nc3 {[%clk 0:02:49.9]} 10... Nxc3 {[%clk 0:02:59.2]} 11. Qxc3
{[%clk 0:02:49.4]} 11... Be4 {[%clk 0:02:58.8]} 12. e3 {[%clk 0:02:38.6]} 12...
d6 {[%clk 0:02:52.3]} 13. Nh4 {[%clk 0:02:38.3]} 13... Bxg2 {[%clk 0:02:51.6]}
14. Nxg2 {[%clk 0:02:37.8]} 14... c5 {[%clk 0:02:42.8]} 15. f4 {[%clk
0:02:35.5]} 15... Nc6 {[%clk 0:02:34.1]} 16. b3 {[%clk 0:02:31.1]} 16... Rac8
{[%clk 0:02:32]} 17. Qd2 {[%clk 0:02:29.6]} 17... d5 {[%clk 0:02:22.7]} 18. cxd5
{[%clk 0:02:29.3]} 18... exd5 {[%clk 0:02:21]} 19. dxc5 {[%clk 0:02:29.5]} 19...
Qxc5 {[%clk 0:02:11.9]} 20. Rfd1 {[%clk 0:02:15.4]} 20... Rfd8 {[%clk
0:02:09.6]} 21. a3 {[%clk 0:02:13.6]} 21... d4 {[%clk 0:01:49.1]} 22. b4 {[%clk
0:02:13.3]} 22... Qd5 {[%clk 0:01:37]} 23. Rac1 {[%clk 0:02:06.4]} 23... d3
{[%clk 0:01:15.1]} 24. Rc3 {[%clk 0:02:02.9]} 24... Qf3 {[%clk 0:01:00.3]} 25.
b5 {[%clk 0:01:37.4]} 25... Ne7 {[%clk 0:00:50.2]} 26. Rxc8 {[%clk 0:01:34.4]}
26... Nxc8 {[%clk 0:00:48.5]} 27. Ne1 {[%clk 0:01:25.4]} 27... Qe4 {[%clk
0:00:32.6]} 28. Nxd3 {[%clk 0:01:25.1]} 28... h5 {[%clk 0:00:12.9]} 29. Qc2
{[%clk 0:01:05.9]} 29... Qxe3+ {[%clk 0:00:10.7]} 30. Nf2 {[%clk 0:01:05.9]}
30... Rxd1+ {[%clk 0:00:08.2]} 31. Qxd1 {[%clk 0:01:05.8]} 31... Qe8 {[%clk
0:00:07]} 32. Qd5+ {[%clk 0:01:04.6]} 32... Qf7 {[%clk 0:00:04.9]} 33. Qa8
{[%clk 0:00:58.6]} 33... Qc7 {[%clk 0:00:03.2]} 34. Qd5+ {[%clk 0:00:57.9]}
34... Qf7 {[%clk 0:00:03]} 35. Qa8 {[%clk 0:00:57.6]} 35... Qd7 {[%clk
0:00:03.2]} 36. Nh3 {[%clk 0:00:57.2]} 36... Qd1+ {[%clk 0:00:01.1]} 37. Kg2
{[%clk 0:00:57.3]} 37... Qe2+ {[%clk 0:00:01.1]} 38. Nf2 {[%clk 0:00:56.8]} 1-0

[Event "Late-Titled-Tuesday-Blitz-September-19-2023"]
[Site "Chess.com"]
[Date "2023.09.19"]
[Round "7"]
[White "reevecanada"]
[Black "picturesquecheck"]
[Result "1-0"]
[WhiteElo "2525"]
[BlackElo "2376"]
[TimeControl "180+1"]
[EndTime "15:14:31 PDT"]
[Termination "reevecanada won by resignation"]

1. e4 {[%clk 0:02:59]} 1... c5 {[%clk 0:02:58.9]} 2. Nf3 {[%clk 0:02:56.7]} 2...
Nc6 {[%clk 0:02:58.9]} 3. Bb5 {[%clk 0:02:55.9]} 3... g6 {[%clk 0:02:59]} 4.
Bxc6 {[%clk 0:02:53.7]} 4... dxc6 {[%clk 0:02:52.9]} 5. d3 {[%clk 0:02:54.3]}
5... Bg7 {[%clk 0:02:51.1]} 6. Nc3 {[%clk 0:02:54.8]} 6... e5 {[%clk 0:02:50.8]}
7. h3 {[%clk 0:02:54.5]} 7... Ne7 {[%clk 0:02:51.2]} 8. Be3 {[%clk 0:02:55.1]}
8... O-O {[%clk 0:02:51.8]} 9. Bxc5 {[%clk 0:02:54.1]} 9... Re8 {[%clk
0:02:52.3]} 10. Qd2 {[%clk 0:02:53.1]} 10... b6 {[%clk 0:02:52.5]} 11. Be3
{[%clk 0:02:53.6]} 11... c5 {[%clk 0:02:52.8]} 12. Bh6 {[%clk 0:02:53.7]} 12...
Nc6 {[%clk 0:02:50.5]} 13. Bxg7 {[%clk 0:02:53.4]} 13... Kxg7 {[%clk 0:02:51.4]}
14. O-O-O {[%clk 0:02:53.5]} 14... h6 {[%clk 0:02:49.2]} 15. h4 {[%clk
0:02:53.4]} 15... Bg4 {[%clk 0:02:45.2]} 16. h5 {[%clk 0:02:51.6]} 16... Bxf3
{[%clk 0:02:32.1]} 17. hxg6 {[%clk 0:02:30.3]} 17... Qg5 {[%clk 0:02:32.1]} 18.
Qxg5 {[%clk 0:02:25.1]} 18... hxg5 {[%clk 0:02:31.9]} 19. gxf7 {[%clk
0:02:24.9]} 19... Kxf7 {[%clk 0:02:20]} 20. gxf3 {[%clk 0:02:22.8]} 20... Rh8
{[%clk 0:02:19.1]} 21. Nd5 {[%clk 0:02:22.6]} 21... Nd4 {[%clk 0:02:17.1]} 22.
c3 {[%clk 0:02:11]} 22... Nxf3 {[%clk 0:02:15.4]} 23. Nc7 {[%clk 0:02:10.3]}
23... Rad8 {[%clk 0:02:05.8]} 24. Nb5 {[%clk 0:02:09.6]} 24... Rxh1 {[%clk
0:02:02.8]} 25. Rxh1 {[%clk 0:02:08.4]} 25... Rxd3 {[%clk 0:02:00]} 26. Nxa7
{[%clk 0:02:08.2]} 26... Rd2 {[%clk 0:01:54.8]} 27. Rf1 {[%clk 0:02:03.7]} 27...
Re2 {[%clk 0:01:53.1]} 28. Nc8 {[%clk 0:02:01.6]} 28... b5 {[%clk 0:01:29.2]}
29. Nd6+ {[%clk 0:01:49.1]} 29... Kg6 {[%clk 0:01:25]} 30. Nxb5 {[%clk 0:01:41]}
30... Nh2 {[%clk 0:01:25.2]} 31. Rd1 {[%clk 0:01:35.8]} 31... Rxf2 {[%clk
0:01:22.9]} 32. a4 {[%clk 0:01:16.6]} 32... g4 {[%clk 0:01:22.6]} 33. a5 {[%clk
0:01:16.7]} 33... Rf6 {[%clk 0:01:07.7]} 34. Nc7 {[%clk 0:01:06.1]} 34... Nf3
{[%clk 0:00:55.8]} 35. a6 {[%clk 0:01:04.9]} 35... g3 {[%clk 0:00:43.2]} 36. a7
{[%clk 0:00:54.3]} 36... Rf8 {[%clk 0:00:43.1]} 37. Kc2 {[%clk 0:00:32.8]} 37...
g2 {[%clk 0:00:39.1]} 38. Kb3 {[%clk 0:00:32.2]} 38... Kg5 {[%clk 0:00:32.5]}
39. Kc4 {[%clk 0:00:31.7]} 39... Kf4 {[%clk 0:00:31.8]} 40. Ne6+ {[%clk
0:00:31.1]} 40... Kxe4 {[%clk 0:00:28.6]} 41. Nxf8 {[%clk 0:00:32]} 1-0